Workbook

Sheet Despesas
B1: Orçamento de Evento para [Nome do Evento] | H1: DESPESAS
B3: DESPESAS TOTAIS | G3: Valor estimado | H3: Real
G4: =SUM(C11,C19,C25,C32,G11,G19,G24) -> R$ 882.00 | H4: =SUM(D11,D19,D25,D32,H11,H19,H24) -> R$ 333.00
B6: Site | C6: Valor estimado | D6: Real | F6: Coffee break | G6: Valor estimado | H6: Real
B7: Taxas da sala e espaço | C7: R$ 500.00 | F7: Alimentação
B8: Equipe de site | F8: Bebidas | G8: R$ 20.00
B9: Equipamentos | F9: Roupa de mesa | H9: R$ 20.00
B10: Mesas e cadeiras | F10: Funcionários e gorjetas
B11: Total | C11: =SUBTOTAL(109,Tabela1[Valor estimado]) -> R$ 500.00 | D11: =SUBTOTAL(109,Tabela1[Real]) -> R$ 0.00 | F11: Total | G11: =SUBTOTAL(109,Tabela3[Valor estimado]) -> R$ 20.00 | H11: =SUBTOTAL(109,Tabela3[Real]) -> R$ 20.00
B13: Decorações | C13: Valor estimado | D13: Real | F13: Programa | G13: Valor estimado | H13: Real
B14: Flores | C14: R$ 200.00 | D14: R$ 300.00 | F14: Executores
B15: Velas | F15: Alto-Falantes | G15: R$ 30.00
B16: Iluminação | F16: Viagem
B17: Balões | F17: Hotel
B18: Fornecedores de papel | F18: Outros
B19: Total | C19: =SUBTOTAL(109,Tabela4[Valor estimado]) -> R$ 200.00 | D19: =SUBTOTAL(109,Tabela4[Real]) -> R$ 300.00 | F19: Total | G19: =SUBTOTAL(109,Tabela5[Valor estimado]) -> R$ 30.00 | H19: =SUBTOTAL(109,Tabela5[Real]) -> R$ 0.00
B21: Publicidade | C21: Valor estimado | D21: Real | F21: Prêmios | G21: Valor estimado | H21: Real
B22: Trabalho com elementos gráficos | F22: Faixa de opções/as placas/troféus
B23: Impressão/fotocópia | C23: R$ 20.00 | F23: Presentes | G23: R$ 100.00
B24: Postagem | F24: Total | G24: =SUBTOTAL(109,Tabela7[Valor estimado]) -> R$ 100.00 | H24: =SUBTOTAL(109,Tabela7[Real]) -> R$ 0.00
B25: Total | C25: =SUBTOTAL(109,Tabela6[Valor estimado]) -> R$ 20.00 | D25: =SUBTOTAL(109,Tabela6[Real]) -> R$ 0.00
B27: Diversos | C27: Valor estimado | D27: Real
B28: Telefone | D28: R$ 13.00
B29: Transporte | C29: R$ 12.00
B30: Fornecedores de material de escritório
B31: Serviços de fax
B32: Total | C32: =SUBTOTAL(109,Tabela8[Valor estimado]) -> R$ 12.00 | D32: =SUBTOTAL(109,Tabela8[Real]) -> R$ 13.00

Sheet Receita
B1: Orçamento de Evento para [Nome do Evento] | G1: RECEITA
B3: TOTAL DA RECEITA | F3: Valor estimado | G3: Real
F4: =SUM(F11, F18, F25, F33) -> R$ 1,936.00 | G4: =SUM(G11,G18,G25, G33) -> R$ 1,831.00
B6: ADMISSÃO
B7: Nº Estimado | C7: Nº real. | D7: Tipo | E7: Preço | F7: Receita estimada | G7: Receita real
B8: 300 | C8: 278 | D8: Adultos @ | E8: R$ 5.00 | F8: =B8*E8 -> R$ 1,500.00 | G8: =C8*E8 -> R$ 1,390.00
B9: 197 | C9: 195 | D9: Crianças @ | E9: R$ 2.00 | F9: =B9*E9 -> R$ 394.00 | G9: =C9*E9 -> R$ 390.00
B10: 42 | C10: 51 | D10: Outros @ | E10: R$ 1.00 | F10: =B10*E10 -> R$ 42.00 | G10: =C10*E10 -> R$ 51.00
B11: Total | F11: =SUBTOTAL(109,Tabela9[Receita estimada]) -> R$ 1,936.00 | G11: =SUBTOTAL(109,Tabela9[Receita real]) -> R$ 1,831.00
B13: ANÚNCIOS NO PROGRAMA
B14: Nº Estimado | C14: Nº real. | D14: Tipo | E14: Preço | F14: Receita estimada | G14: Receita real
B15: 12 | D15: Folhas de rosto @ | F15: =B15*E15 -> R$ 0.00 | G15: =C15*E15 -> R$ 0.00
C16: 158 | D16: Metade das páginas @ | F16: =B16*E16 -> R$ 0.00 | G16: =C16*E16 -> R$ 0.00
B17: 4 | D17: Um quarto das páginas @ | F17: =B17*E17 -> R$ 0.00 | G17: =C17*E17 -> R$ 0.00
B18: Total | F18: =SUBTOTAL(109,Tabela10[Receita estimada]) -> R$ 0.00 | G18: =SUBTOTAL(109,Tabela10[Receita real]) -> R$ 0.00
B20: APRESENTADORES/FORNECEDORES
B21: Nº Estimado | C21: Nº real. | D21: Tipo | E21: Preço | F21: Receita estimada | G21: Receita real
B22: 23 | D22: Grande estande @ | F22: =B22*E22 -> R$ 0.00 | G22: =C22*E22 -> R$ 0.00
B23: 354 | D23: Estande MED. @ | F23: =B23*E23 -> R$ 0.00 | G23: =C23*E23 -> R$ 0.00
B24: 56 | D24: Pequeno estande @ | F24: =B24*E24 -> R$ 0.00 | G24: =C24*E24 -> R$ 0.00
B25: Total | F25: =SUBTOTAL(109,Tabela11[Receita estimada]) -> R$ 0.00 | G25: =SUBTOTAL(109,Tabela11[Receita real]) -> R$ 0.00
B27: VENDAS DE ITENS
B28: Nº Estimado | C28: Nº real. | D28: Tipo | E28: Preço | F28: Receita estimada | G28: Receita real
D29: Itens @ | F29: =B29*E29 -> R$ 0.00 | G29: =C29*E29 -> R$ 0.00
B30: 123 | D30: Itens @ | F30: =B30*E30 -> R$ 0.00 | G30: =C30*E30 -> R$ 0.00
D31: Itens @ | F31: =B31*E31 -> R$ 0.00 | G31: =C31*E31 -> R$ 0.00
B32: 13 | D32: Itens @ | F32: =B32*E32 -> R$ 0.00 | G32: =C32*E32 -> R$ 0.00
B33: Total | F33: =SUBTOTAL(109,Tabela12[Receita estimada]) -> R$ 0.00 | G33: =SUBTOTAL(109,Tabela12[Receita real]) -> R$ 0.00

Sheet Resumo de Lucros e Perdas
B1: Orçamento de Evento para [Nome do Evento] | G1: LUCRO
G2: Resumo de perda
C5: Valor estimado | D5: Real
B6: Total da Receita | C6: =Receita!F4 -> R$ 1,936.00 | D6: =Receita!G4 -> R$ 1,831.00
B7: Despesas totais | C7: =Despesas!G4 -> R$ 882.00 | D7: =Despesas!H4 -> R$ 333.00
B9: O lucro total (ou perda) | C9: =C6-C7 -> R$ 1,054.00 | D9: =D6-D7 -> R$ 1,498.00
